[Event "45th FIDE Olympiad 2024"]
[Site "Budapest"]
[Date "2024.09.16"]
[Round "6.60"]
[White "Krejci, Jan"]
[Black "Olsen, Filip Boe"]
[Result "0-1"]
[ECO "D35"]
[WhiteElo "2556"]
[BlackElo "2441"]
[Annotator "TA"]
[PlyCount "100"]
[EventDate "2024.09.05"]
[EventType "team-tourn"]
[EventCountry "HUN"]
[SourceTitle "playchess.com"]
[Source "ChessBase"]
[SourceQuality "1"]
[WhiteTeam "Czech Republic"]
[BlackTeam "Denmark"]
[WhiteTeamCountry "CZE"]
[BlackTeamCountry "DEN"]
[TimeControl "40/5400+30:1800+30"]

{[%evp 12,100,21,19,24,12,29,0,0,0,0,0,0,0,0,-9,-10,-35,-27,-38,-37,-37,-23,-29,-5,-41,-22,-50,-42,-108,-116,-113,-116,-116,-117,-111,-47,-53,-24,-22,0,0,0,0,12,20,13,4,46,0,22,0,0,0,18,0,0,0,0,-8,-20,-64,-69,-208,-206,-1186,-1154,-1075,-934,-877,-451,-827,-378,-382,-282,-259,-264,-313,-264,-387,-385,-364,-308,-308,-308,-809,-781,-765,-728,-783,-761]} 1. c4 {[%emt 0:00:02]} e6 {[%emt 0:00:11]} 2. Nc3 {[%emt 0:00:04]} d5 {[%emt 0:00:36]} 3. d4 {[%emt 0:00:05]} Nf6 {[%emt 0:00:21]} 4. cxd5 {[%emt 0:00:05]} exd5 {[%emt 0:00:32]} 5. Bg5 {[%emt 0:00:05]} Be7 {[%emt 0:00:39]} 6. e3 {[%emt 0:00:09]} h6 {[%emt 0:00:27]} 7. Bh4 {[%emt 0:01:10]} Bg4 {[%emt 0:00:29]} 8. Nf3 {[%emt 0:10:18]} Nbd7 {[%emt 0:00:32]} 9. h3 {[%emt 0:02:26]} Bf5 {[%emt 0:06:40] The position is equal.} 10. Bd3 {[%emt 0:10:20]} Bxd3 {[%emt 0:00:44]} 11. Qxd3 {[%emt 0:00:02]} c6 {[%emt 0:01:00]} 12. O-O {[%emt 0:10:59]} O-O {[%emt 0:02:47]} 13. Bxf6 {[%emt 0:04:03]} Nxf6 {[%emt 0:04:51]} 14. Ne5 {[%emt 0:01:45]} Bd6 {[%emt 0:08:48]} 15. f4 {[%emt 0:00:38]} Re8 {[%emt 0:09:54]} 16. g4 {[%emt 0:06:30]} Nd7 {[%emt 0:10:54]} 17. Rf2 {[%emt 0:04:59]} Qe7 {[%emt 0:10:14][%cal Rd6e5]} 18. Re1 {[%emt 0:09:14]} Rad8 {[%emt 0:02:05][%cal Rd6e5]} 19. Nf3 {[%emt 0:08:49]} Nf6 {[%emt 0:04:18]} 20. g5 {[%emt 0:09:57]} (20. Rg2 $15) 20... Ne4 $17 {[%emt 0:03:40]} 21. Rg2 {[%emt 0:00:20]} hxg5 {[%emt 0:03:07]} 22. Nxg5 {[%emt 0:01:17]} Nxg5 {[%emt 0:02:29]} 23. fxg5 {[%emt 0:00:02]} Qe6 {[%emt 0:03:45]} (23... Bf4 $17 24. e4 Bxg5) 24. e4 $15 {[%emt 0:02:04]} Qg6 {[%emt 0:04:45]} 25. Qf3 {[%emt 0:00:42]} Bb4 {[%emt 0:04:38] [#] ...dxe4 is the strong threat.} 26. e5 {[%emt 0:00:05]} c5 {[%emt 0:00:45]} 27. Rf1 {[%emt 0:01:40]} Bxc3 {[%emt 0:01:26]} 28. bxc3 {[%emt 0:00:01]} Re7 {[%emt 0:00:43]} 29. h4 {[%emt 0:00:39]} (29. dxc5 Rxe5 30. Qf4 Rde8 $17) 29... Qe4 {[%emt 0:02:14]} 30. Qf2 {[%emt 0:01:28]} (30. dxc5 Qxe5 (30... Rxe5 31. Qxf7+ Kh7 32. Qh5+ Kg8 33. Rg4 $16) 31. g6 fxg6 32. Rxg6 d4 33. cxd4 Qxd4+ 34. Kg2 Qxc5 $17 (34... Qxh4 35. Rf2 $17)) (30. Qg3 $14) 30... Qg6 {[%emt 0:00:32]} 31. Qe2 {[%emt 0:01:47]} (31. dxc5 Rxe5 32. c6 bxc6 (32... Qxc6 33. Qxf7+ Kh8 34. g6 $16) 33. Qxa7 Re4 $17) 31... Qe4 {[%emt 0:00:42]} 32. Qf2 {[%emt 0:00:07]} (32. dxc5 Qxh4 (32... Rxe5 33. Qxe4 dxe4 34. Rb1 $15) 33. g6 fxg6 34. Rxg6 Qe4 35. Qxe4 dxe4 $17) 32... Qg6 {[%emt 0:00:19]} 33. Qe2 {[%emt 0:05:04]} ({Don't play} 33. dxc5 Rxe5 34. Rg4 Qe6 $17) (33. Qf4 {looks sharper.} Qd3 34. Rf3 Qe4 35. h5) 33... Qe4 {[%emt 0:00:52]} 34. Qd2 {[%emt 0:05:02]} ({Much weaker is} 34. dxc5 Qxh4 (34... Rxe5 35. Qf2 $17) 35. g6 fxg6 36. Rxg6 Qe4 37. Qxe4 dxe4 $17) 34... Qxh4 {[%emt 0:02:46]} 35. Rf4 {[%emt 0:00:14]} Qh5 {[%emt 0:01:43]} 36. Qe1 {[%emt 0:01:56] [#] Threatens to win with Rh4.} cxd4 {[%emt 0:01:33]} 37. Rh4 {[%emt 0:00:46] White does not recover from this.} (37. cxd4 $15 Rc7 38. Rf1 (38. e6 $2 Re8 $17)) 37... Rxe5 $1 $19 {[%emt 0:00:40]} 38. Qf2 {[%emt 0:03:16]} (38. Qxe5 Qxh4 39. g6) 38... Qd1+ {[%emt 0:00:37]} 39. Kh2 {[%emt 0:00:00]} Re1 {[%emt 0:01:32]} 40. Rxd4 {[%emt 0:00:16]} Rh1+ {[%emt 0:01:13]} 41. Kg3 {[%emt 0:31:13]} Qc1 {[%emt 0:06:47]} (41... Qh5 $142 {[%cal Od8e8] ( -> ...Re8!)} 42. Rh2 Qxg5+ 43. Rg4 Qe5+ 44. Qf4 Qxc3+ 45. Kg2 Rxh2+ 46. Kxh2 Re8) 42. Qd2 {[%emt 0:00:00]} Rc8 {[%emt 0:01:33]} 43. Qxc1 {[%emt 0:00:00]} Rxc1 {[%emt 0:00:12]} 44. Rxd5 {[%emt 0:00:00]} R1xc3+ {[%emt 0:01:46][%mdl 4096] Endgame. KRR-KRR} 45. Kf4 {[%emt 0:00:00]} (45. Kh2 $142) 45... R8c4+ {[%emt 0:00:59]} 46. Ke5 {[%emt 0:00:00] White threatens Rd8+ and mate.} Rc5 {[%emt 0:00:41]} 47. Rxc5 {[%emt 0:00:00]} Rxc5+ {[%emt 0:00:01]} 48. Kd6 $2 {[%emt 0:00:00]} (48. Kf4) 48... Ra5 {[%emt 0:01:04] Black is clearly winning.} 49. Ke7 {[%emt 0:00:00]} b6 {[%emt 0:00:27]} 50. Kd6 {[%emt 0:00:00]} Kh7 {[%emt 0:00:13] Weighted Error Value: White=0.40/Black=0.35.  Mistake:       	White=6     	Black=1      Inaccurate:     	White=4     	Black=2      OK:         	White=9     	Black=16     Best:        	White=3     	Black=1      Strong:       	---       	Black=1} 0-1

[Event "45th FIDE Olympiad 2024"]
[Site "Budapest"]
[Date "2024.09.16"]
[Round "6.60"]
[White "Mahor Jr, Manuel"]
[Black "Maharaj, Yash Krishen"]
[Result "0-1"]
[WhiteElo "1759"]
[BlackElo "1847"]
[PlyCount "80"]
[EventDate "2024.09.05"]
[EventType "team-tourn"]
[EventCountry "HUN"]
[WhiteTeam "Palau"]
[BlackTeam "Fiji"]
[WhiteTeamCountry "PAL"]
[BlackTeamCountry "FIJ"]
[TimeControl "40/5400+30:1800+30"]

1. c4 g6 2. Nc3 Bg7 3. g3 c5 4. Bg2 Nc6 5. Nf3 e5 6. d3 Nge7 7. O-O d6 8. e4 a6 9. a4 Rb8 10. h3 O-O 11. Bg5 f6 12. Be3 Be6 13. Ne1 Qd7 14. Kh2 Nb4 15. Nc2 Nec6 16. Nd5 Nxc2 17. Qxc2 Bxd5 18. cxd5 Ne7 19. h4 h5 20. Qd2 Kh7 21. f4 f5 22. Bh3 b5 23. axb5 Rxb5 24. Rab1 Rfb8 25. Bg2 Qc7 26. Qc2 exf4 27. Bxf4 Rxb2 28. Rxb2 Rxb2 29. Qa4 Rb6 30. Qa5 Qb7 31. Bg5 Ng8 32. exf5 Nf6 33. fxg6+ Kxg6 34. Bxf6 Bxf6 35. Be4+ Kg7 36. Qa4 Rb2+ 37. Kh3 Qb5 38. Qd1 Qe8 39. Qf3 Qe5 40. g4 Rh2# {0-} 0-1

[Event "45th FIDE Olympiad 2024"]
[Site "Budapest"]
[Date "2024.09.16"]
[Round "6.61"]
[White "Rodrigue-Lemieux, Shawn"]
[Black "Yilmaz, Mustafa"]
[Result "1-0"]
[ECO "B90"]
[WhiteElo "2509"]
[BlackElo "2587"]
[Annotator "TA"]
[PlyCount "79"]
[EventDate "2024.09.05"]
[EventType "team-tourn"]
[EventCountry "HUN"]
[SourceTitle "playchess.com"]
[Source "ChessBase"]
[SourceQuality "1"]
[WhiteTeam "Canada"]
[BlackTeam "Turkiye"]
[WhiteTeamCountry "CAN"]
[TimeControl "40/5400+30:1800+30"]

{[%evp 17,79,10,27,15,26,-14,-8,-13,0,-6,0,0,7,5,22,0,0,2,14,29,20,10,29,19,41,50,38,0,0,8,19,6,256,177,246,250,194,245,263,70,258,266,253,259,472,472,420,393,724,721,739,750,780,765,735,704,4818,4714,5114,5090,6203,6195,6170,5728]} 1. e4 {[%emt 0:00:04]} c5 {[%emt 0:00:04]} 2. Nf3 {[%emt 0:00:09]} d6 {[%emt 0:00:04]} 3. d4 {[%emt 0:00:16]} cxd4 {[%emt 0:00:04]} 4. Nxd4 {[%emt 0:00:08]} Nf6 {[%emt 0:00:04]} 5. Nc3 {[%emt 0:00:12]} a6 {[%emt 0:00:03]} 6. Bd3 {[%emt 0:00:12]} e5 {[%emt 0:01:28]} 7. Nde2 {[%emt 0:00:09]} Be7 {[%emt 0:00:27]} 8. O-O {[%emt 0:00:30]} O-O {[%emt 0:00:22]} 9. Ng3 {[%emt 0:02:09] B90: Sicilian Najdorf: Unusual White 6th moves, 6 Be3 Ng4 and 6 Be3 e5.} Bg4 {[%emt 0:01:42]} 10. Be2 {[%emt 0:06:52]} Be6 {[%emt 0:00:12]} 11. Nd5 {[%emt 0:00:34]} Nxd5 {[%emt 0:00:19]} 12. exd5 {[%emt 0:00:07]} Bc8 {[%emt 0:00:02]} 13. a4 {[%emt 0:03:36]} f5 {[%emt 0:02:45]} 14. a5 {[%emt 0:04:05]} Nd7 {[%emt 0:06:41]} 15. c4 {[%emt 0:01:30]} e4 $146 {[%emt 0:06:30]} ({Predecessor:} 15... Nf6 16. f4 e4 17. Be3 Nd7 18. b4 Kh8 19. Qb3 Rb8 20. Rfd1 b6 21. axb6 Nxb6 22. c5 dxc5 23. bxc5 Nd7 24. Qc2 Bf6 25. Ra2 Rb5 {1-0 Patrick,D (2244)-Hilton,S (1901) SCO-ch Hamilton 2010 (3)}) 16. b4 {[%emt 0:05:11]} Bf6 {[%emt 0:03:00]} 17. Ra3 {[%emt 0:01:41]} (17. Nxf5 Bxa1 18. Nxd6 Be5 19. Nxc8 Rxc8 $19) 17... Be5 {[%emt 0:02:27]} 18. f4 {[%emt 0:07:15]} exf3 {[%emt 0:01:49]} 19. Raxf3 {[%emt 0:00:21]} g6 {[%emt 0:07:48]} 20. Bh6 {[%emt 0:02:03]} Rf7 {[%emt 0:08:51]} 21. Qd2 {[%emt 0:03:35]} Nf6 {[%emt 0:04:42]} 22. Bf4 {[%emt 0:02:09]} Bxf4 $1 {[%emt 0:02:27]} 23. Qxf4 {[%emt 0:14:20]} b6 {[%emt 0:01:30]} 24. Qg5 {[%emt 0:11:04]} Kf8 $2 {[%emt 0:14:48]} (24... bxa5 $2 25. Nxf5 Bxf5 26. Rxf5 axb4 27. Rxf6 $18) (24... Kh8 $1 $11) 25. Bd3 $1 $18 {[%emt 0:04:33]} bxa5 {[%emt 0:16:53]} 26. Bxf5 $1 {[%emt 0:02:37]} Bxf5 {[%emt 0:04:27]} 27. Nxf5 {[%emt 0:00:07]} Ne4 {[%emt 0:04:37]} 28. Qxd8+ {[%emt 0:07:56]} Rxd8 {[%emt 0:00:02] [#]} 29. Nd4 $1 {[%emt 0:00:13]} Rdd7 {[%emt 0:04:15] [#]} 30. c5 $1 {[%emt 0:03:42]} (30. bxa5 Nd2 31. Ne6+ Ke8 32. Rxf7 Rxf7 $11) 30... Nd2 $2 {[%emt 0:03:26]} (30... axb4 $2 31. c6 Rxf3 32. gxf3 $18 (32. Rxf3+ Ke8 $18)) (30... dxc5 {was called for.} 31. bxc5 (31. Ne6+ Ke8 $18) 31... Rxf3 (31... Nxc5 $2 32. Ne6+ Ke8 33. Rxf7 $18) 32. Rxf3+ Rf7) 31. Rxf7+ $18 {[%emt 0:13:12]} Rxf7 {[%emt 0:00:01]} 32. Rc1 {[%emt 0:01:13]} Ke8 $2 {[%emt 0:04:08]} (32... axb4 33. c6 (33. cxd6 Ke8 $18) 33... b3 34. Nxb3 (34. c7 Rxc7 35. Ne6+ Ke8 $11) 34... Nxb3) 33. c6 $18 {[%emt 0:01:11]} ({Weaker is} 33. cxd6 Rf4 (33... axb4 $2 {too greedy.} 34. Ne6 $18) 34. Ne6 Rc4 $11) (33. bxa5 dxc5 34. Rd1 cxd4 $11) 33... Kd8 {[%emt 0:00:20]} 34. b5 {[%emt 0:01:02]} axb5 {[%emt 0:00:41]} 35. Nxb5 {[%emt 0:01:01]} Rf8 {[%emt 0:00:25]} 36. Nxd6 {[%emt 0:01:33]} Kc7 {[%emt 0:00:01]} 37. Nb5+ {[%emt 0:00:16]} Kb6 {[%emt 0:00:30]} 38. c7 {[%emt 0:00:35]} Kxb5 {[%emt 0:00:15]} 39. d6 {[%emt 0:00:40]} (39. c8=B $2 a4 40. Be6 Nb3 $17) 39... Nb3 {[%emt 0:01:12]} 40. c8=Q {[%emt 0:00:26]} 1-0

[Event "45th FIDE Olympiad 2024"]
[Site "Budapest"]
[Date "2024.09.16"]
[Round "6.61"]
[White "Thabang, Mphane"]
[Black "Hemam, Moulaye Brahim"]
[Result "0-1"]
[WhiteElo "1799"]
[BlackElo "1977"]
[PlyCount "120"]
[EventDate "2024.09.05"]
[EventType "team-tourn"]
[EventCountry "HUN"]
[WhiteTeam "Lesotho"]
[BlackTeam "Mauritania"]
[WhiteTeamCountry "LES"]
[BlackTeamCountry "MAU"]
[TimeControl "40/5400+30:1800+30"]

1. Nf3 Nf6 2. c4 g6 3. g3 Bg7 4. Bg2 O-O 5. O-O d6 6. Nc3 e5 7. d3 Nc6 8. Nh4 Be6 9. b4 Nxb4 10. Rb1 Nc6 11. Rxb7 d5 12. Ba3 Re8 13. Qa4 Nd4 14. e3 Bd7 15. Qa5 Nc2 16. Bc5 e4 17. dxe4 dxe4 18. Rb2 g5 19. Nf3 exf3 20. Bxf3 Bf5 21. Rd1 Nd7 22. g4 Qf6 23. gxf5 Nxc5 24. Bxa8 Rxa8 25. Rxc2 Qxf5 26. Re2 Qg4+ 27. Kf1 Qh3+ 28. Ke1 Bxc3+ 29. Qxc3 Ne4 30. Qe5 Qf3 31. Rc2 Qg2 32. Qf5 Re8 33. Rd7 Nd6 34. Qf6 Qg1+ 35. Ke2 Qg4+ 36. f3 Qxd7 37. Qxg5+ Kf8 38. Qh6+ Ke7 39. Qg5+ f6 40. Qg7+ Nf7 41. Rd2 Qf5 42. Qg3 Qe5 43. f4 Qe4 44. Rd4 Qc2+ 45. Kf3 Qg6 46. Qh3 f5 47. Qh4+ Kf8 48. h3 Qc6+ 49. Kf2 Rb8 50. Rd2 Qg6 51. Qg3 Nd6 52. Qxg6 hxg6 53. Kf3 Ke7 54. c5 Ne4 55. Rd5 Rd8 56. Re5+ Kf6 57. a4 Rd2 58. Rxe4 fxe4+ 59. Kxe4 c6 60. h4 a5 {0-} 0-1

[Event "45th FIDE Olympiad 2024"]
[Site "Budapest"]
[Date "2024.09.16"]
[Round "6.62"]
[White "Gurel, Ediz"]
[Black "Thavandiran, Shiyam"]
[Result "1-0"]
[ECO "C11"]
[WhiteElo "2602"]
[BlackElo "2388"]
[Annotator "TA"]
[PlyCount "123"]
[EventDate "2024.09.05"]
[EventType "team-tourn"]
[EventCountry "HUN"]
[SourceTitle "playchess.com"]
[Source "ChessBase"]
[SourceQuality "1"]
[WhiteTeam "Turkiye"]
[BlackTeam "Canada"]
[BlackTeamCountry "CAN"]
[TimeControl "40/5400+30:1800+30"]

{[%evp 46,123,149,97,95,94,85,85,137,145,200,135,167,129,156,142,153,103,119,109,140,110,116,58,53,67,79,108,114,137,169,124,134,101,98,87,157,166,207,215,197,206,214,230,238,239,232,155,260,219,262,128,1039,1010,1067,982,2541,2479,29989,29990,29990,29985,29986,29987,29987,29988,29988,29987,29987,29988,29988,29989,29991,29990,29990,29988,29988,29989,29989,29990]} 1. e4 {[%emt 0:00:04]} e6 {[%emt 0:00:11]} 2. d4 {[%emt 0:00:11]} d5 {[%emt 0:00:08]} 3. Nc3 {[%emt 0:00:09]} Nf6 {[%emt 0:00:26]} 4. e5 {[%emt 0:00:14]} Nfd7 {[%emt 0:00:06]} 5. f4 {[%emt 0:00:13]} c5 {[%emt 0:00:12]} 6. Nf3 {[%emt 0:00:06]} Nc6 {[%emt 0:00:09]} 7. Be3 {[%emt 0:00:08]} a6 {[%emt 0:06:24]} 8. Ne2 {[%emt 0:00:20] C11: French: Classical System: 4 e5 and 4 Bg5 dxe4.} Qb6 {[%emt 0:02:13]} 9. Qc1 {[%emt 0:02:00]} Be7 {[%emt 0:00:33]} 10. c3 {[%emt 0:00:14]} Qa5 $146 {[%emt 0:00:38]} ({Predecessor:} 10... O-O 11. h4 f6 12. h5 h6 13. Rh3 a5 14. Qc2 a4 15. a3 Na5 16. Nh4 Rf7 {0-1 Navara,D (2678)-Tabatabaei,M (2707) FRA-chT Top 16 GpB 2024 (4.10)}) 11. Kf2 {[%emt 0:01:11]} Qc7 {[%emt 0:12:11]} 12. Kg1 {[%emt 0:14:22]} b5 {[%emt 0:06:02]} 13. h4 {[%emt 0:01:57]} cxd4 {[%emt 0:18:09]} 14. cxd4 {[%emt 0:04:54]} Nb6 {[%emt 0:06:47]} 15. h5 {[%emt 0:06:38]} Bd7 {[%emt 0:03:15]} 16. b3 {[%emt 0:05:37]} Rc8 {[%emt 0:01:56]} 17. Qe1 {[%emt 0:04:24]} Nb4 {[%emt 0:11:31]} 18. Qg3 {[%emt 0:01:21]} Kf8 {[%emt 0:00:39]} 19. Ne1 {[%emt 0:00:52]} Qd8 {[%emt 0:01:57]} 20. Bd2 {[%emt 0:01:28]} Na8 {[%emt 0:07:19]} 21. a3 {[%emt 0:04:13]} Nc6 {[%emt 0:00:29]} 22. Nd3 {[%emt 0:00:45]} a5 {[%emt 0:00:37]} 23. Qf2 {[%emt 0:03:58]} Nb6 {[%emt 0:01:40]} 24. g4 {[%emt 0:05:46]} ({Better is} 24. Nc3) 24... a4 $16 {[%emt 0:04:24]} 25. b4 {[%emt 0:01:03]} Nc4 {[%emt 0:00:06]} 26. Bc1 {[%emt 0:01:43]} Qb6 {[%emt 0:01:17]} (26... f6 $142) 27. f5 {[%emt 0:08:59]} Ke8 {[%emt 0:00:15]} (27... h6 $16 28. Rh3 Qd8) 28. Rh3 {[%emt 0:06:45]} Kd8 {[%emt 0:03:16]} 29. Rf3 {[%emt 0:04:16]} Kc7 {[%emt 0:00:38]} 30. Bf4 {[%emt 0:02:34]} Kb7 {[%emt 0:00:45]} 31. Bg3 {[%emt 0:01:48]} (31. Nc5+ $6 Bxc5 32. bxc5 Qd8 $14) (31. f6 $142 gxf6 32. exf6) 31... Nd2 $16 {[%emt 0:00:47]} 32. Rf4 {[%emt 0:01:45]} (32. Nc5+ Bxc5 33. dxc5 (33. bxc5 Nxf3+ 34. Qxf3 Qa5 $15) 33... Nxf3+ 34. Qxf3 Qc7) 32... Ka8 {[%emt 0:06:17]} 33. Rd1 {[%emt 0:04:06]} Nc4 {[%emt 0:00:37]} 34. Rf3 {[%emt 0:01:33]} (34. Nc5 $16 Rhd8 35. Ra1) 34... Qa7 $14 {[%emt 0:00:35]} 35. Nc5 {[%emt 0:02:14]} Bxc5 {[%emt 0:01:27]} 36. bxc5 {[%emt 0:00:11]} N6a5 {[%emt 0:00:05]} 37. Bg2 {[%emt 0:03:25]} Nb3 {[%emt 0:01:45]} 38. fxe6 {[%emt 0:01:24]} Bxe6 {[%emt 0:00:12]} 39. Nc3 {[%emt 0:03:39]} Qd7 {[%emt 0:01:41]} 40. Rf4 {[%emt 0:03:17]} Rhf8 {[%emt 0:02:11]} ({Black should play} 40... Qb7) 41. Qf3 $16 {[%emt 0:03:11]} Rcd8 {[%emt 0:22:30]} 42. Bh4 {[%emt 0:00:07]} Nxa3 {[%emt 0:01:59]} 43. Bxd8 {[%emt 0:00:09]} Rxd8 {[%emt 0:00:11]} 44. Qd3 $1 {[%emt 0:00:28]} g6 {[%emt 0:00:57]} 45. hxg6 {[%emt 0:03:08]} hxg6 {[%emt 0:00:14]} 46. Rf6 $1 {[%emt 0:00:09]} Ka7 {[%emt 0:00:54] [#]} (46... Qb7 $16 {might work better.} 47. Qg3 Nc4) 47. Rdf1 $1 $18 {[%emt 0:02:18]} Nc4 {[%emt 0:00:33] [#]} (47... b4 $2 48. Nxd5 Kb8 (48... Bxd5 49. Qa6+ Kb8 50. Rb6+ Kc7 51. Qa7+ Kc8 52. Rb8#) 49. c6 (49. Nxb4 Qxd4+ 50. Qxd4 Nxd4 $18) 49... Qxc6 50. Nxb4 $18) 48. R1f4 {[%emt 0:03:13]} (48. c6 $1 $18 {[%cal Rc6d7] is the precise move to win.} Qxc6 49. Rxf7+ (49. Nxd5 $2 Qd7 $19) 49... Bxf7 50. Rxf7+ Kb8 51. Rf6) 48... b4 $2 {[%emt 0:02:09][%mdl 8192]} (48... Bxg4 $2 {is the wrong capture.} 49. Rxf7 (49. Nxd5 Be6 $18) 49... g5 50. Rxd7+ $18 (50. Nxb5+ Ka6 $18)) (48... Kb8 $16) 49. Nxd5 $18 {[%emt 0:05:11]} Bxd5 {[%emt 0:02:47]} 50. c6 {[%emt 0:00:07]} Nc1 {[%emt 0:02:37]} 51. Qd1 {[%emt 0:00:37]} ({And not} 51. cxd7 Nxd3 52. Bxd5 Ne3 53. Bxf7 (53. Bc6 $2 Nxf4 54. Bxa4 Nh3+ 55. Kh1 Ng5 $19) 53... Nxf4 54. Rxf4 Rxd7 $11) 51... b3 {[%emt 0:00:33]} 52. cxd7 {[%emt 0:00:13]} Bxg2 {[%emt 0:00:41]} 53. Qxc1 {[%emt 0:00:22]} Bd5 {[%emt 0:00:21]} 54. Qc3 {[%emt 0:00:59]} b2 {[%emt 0:00:30]} 55. Qb4 {[%emt 0:01:45]} Rxd7 {[%emt 0:00:37]} 56. Qxa4+ {[%emt 0:00:06]} Kb8 {[%emt 0:00:05]} 57. Qxd7 {[%emt 0:01:28]} b1=Q+ {[%emt 0:00:06]} 58. Rf1 {[%emt 0:00:01]} Qe4 {[%emt 0:01:14]} 59. Qd8+ {[%emt 0:00:06]} Kb7 {[%emt 0:00:14]} 60. Rxf7+ {[%emt 0:00:04]} Ka6 {[%emt 0:00:53]} 61. R7f6+ {[%emt 0:01:18]} Kb5 {[%emt 0:00:11]} 62. Qb8+ {[%emt 0:00:15]} 1-0

[Event "45th FIDE Olympiad 2024"]
[Site "Budapest"]
[Date "2024.09.16"]
[Round "6.62"]
[White "Abdellahi, Khaled Abdellahi"]
[Black "Tsephe, Lebajoa"]
[Result "0-1"]
[WhiteElo "1894"]
[BlackElo "1900"]
[PlyCount "86"]
[EventDate "2024.09.05"]
[EventType "team-tourn"]
[EventCountry "HUN"]
[WhiteTeam "Mauritania"]
[BlackTeam "Lesotho"]
[WhiteTeamCountry "MAU"]
[BlackTeamCountry "LES"]
[TimeControl "40/5400+30:1800+30"]

1. e4 c5 2. Nf3 d6 3. d4 cxd4 4. Nxd4 Nf6 5. Nc3 a6 6. Rg1 e5 7. Nb3 h5 8. h3 h4 9. Be3 Be6 10. Qd2 Nbd7 11. O-O-O b5 12. a3 Qb8 13. f4 Bxb3 14. cxb3 Qb7 15. Bd3 Be7 16. Kb1 exf4 17. Bxf4 Nc5 18. Bxd6 Bxd6 19. Bxb5+ axb5 20. Qxd6 Ne6 21. Nd5 Rh5 22. Rge1 Rd8 23. Nxf6+ gxf6 24. Qb4 Rxd1+ 25. Rxd1 Re5 26. Re1 Ng5 27. Ka2 Nxe4 28. Rd1 Qe7 29. Qa5 Kf8 30. Qa8+ Kg7 31. Rd8 f5 32. Rg8+ Kf6 33. Qc6+ Qd6 34. Qc1 Qd2 35. Qc6+ Re6 36. Qc8 b4 37. Qd8+ Qxd8 38. Rxd8 Rd6 39. Rb8 bxa3 40. bxa3 Rd2+ 41. Kb1 Rxg2 42. a4 f4 43. Rb4 Nc3+ {0-} 0-1

[Event "45th FIDE Olympiad 2024"]
[Site "Budapest"]
[Date "2024.09.16"]
[Round "6.63"]
[White "Preotu, Razvan"]
[Black "Erdogmus, Yagiz Kaan"]
[Result "1-0"]
[ECO "A07"]
[WhiteElo "2451"]
[BlackElo "2592"]
[Annotator "RC"]
[PlyCount "93"]
[EventDate "2024.09.05"]
[EventType "team-tourn"]
[EventCountry "HUN"]
[SourceTitle "playchess.com"]
[Source "ChessBase"]
[SourceQuality "1"]
[WhiteTeam "Canada"]
[BlackTeam "Turkiye"]
[WhiteTeamCountry "CAN"]
[TimeControl "40/5400+30:1800+30"]

1. Nf3 {[%emt 0:00:05]} d5 {[%emt 0:00:07]} 2. g3 {[%emt 0:00:09]} c6 {[%emt 0:00:05]} 3. Bg2 {[%emt 0:00:10]} Bg4 {[%emt 0:00:13]} 4. O-O {[%emt 0:00:22]} e6 {[%emt 0:00:30]} 5. h3 {[%emt 0:00:35]} Bh5 {[%emt 0:00:15]} 6. c4 {[%emt 0:00:46]} Nd7 {[%emt 0:01:42]} 7. d4 {[%emt 0:00:45]} Ngf6 {[%emt 0:00:52]} 8. cxd5 {[%emt 0:00:56]} exd5 {[%emt 0:02:09]} 9. Ne5 {[%emt 0:00:14]} Be7 10. Nc3 {[%emt 0:00:30]} Bg6 11. f4 {[%emt 0:00:30]} Be4 {[%emt 0:25:45]} 12. Nxe4 {[%emt 0:00:30]} Nxe4 {[%emt 0:00:30]} 13. Bxe4 {[%emt 0:00:30]} dxe4 {[%emt 0:00:30]} 14. Qb3 {[%emt 0:00:30]} Nxe5 {[%emt 0:00:30]} 15. dxe5 {[%emt 0:00:30]} Bc5+ {[%emt 0:00:30]} 16. Be3 {[%emt 0:00:30]} Bxe3+ {[%emt 0:00:30]} 17. Qxe3 {[%emt 0:00:30]} Qb6 {[%emt 0:00:30]} 18. Kf2 {[%emt 0:00:30]} Ke7 {[%emt 0:00:30]} 19. a4 {[%emt 0:00:30]} Rhd8 {[%emt 0:00:30]} 20. a5 {[%emt 0:00:30]} Qxe3+ {[%emt 0:00:30]} 21. Kxe3 {[%emt 0:00:30]} Rd5 {[%emt 0:00:30]} 22. a6 {[%emt 0:00:30]} Rb5 {[%emt 0:00:30]} 23. axb7 {[%emt 0:00:30]} Rxb7 {[%emt 0:00:30]} 24. Rfc1 {[%emt 0:00:30]} Rb6 {[%emt 0:00:30]} 25. Ra2 {[%emt 0:00:30]} a5 {[%emt 0:00:30]} 26. Kxe4 {[%emt 0:00:30]} Rb4+ {[%emt 0:00:30]} 27. Kf3 {[%emt 0:00:30]} Ra6 {[%emt 0:00:30]} 28. e3 {[%emt 0:00:30]} a4 {[%emt 0:00:30]} 29. Rca1 {[%emt 0:00:30]} g5 {[%emt 0:00:30]} 30. b3 {[%emt 0:00:30]} Rxb3 {[%emt 0:00:30]} 31. Rxa4 {[%emt 0:00:30]} Rxa4 {[%emt 0:00:30]} 32. Rxa4 {[%emt 0:00:30]} gxf4 {[%emt 0:00:30]} 33. gxf4 {[%emt 0:00:30]} Rc3 {[%emt 0:00:30]} 34. Ke4 {[%emt 0:00:30]} Rc2 {[%emt 0:00:30]} 35. Ra7+ {[%emt 0:00:30]} Kf8 {[%emt 0:00:30]} 36. Kf5 {[%emt 0:00:30]} Rg2 {[%emt 0:00:30]} 37. e6 {[%emt 0:00:30]} fxe6+ {[%emt 0:00:30]} 38. Kxe6 {[%emt 0:00:30]} Rg6+ {[%emt 0:00:30]} 39. Ke5 {[%emt 0:00:30]} Rg3 {[%emt 0:00:30]} 40. e4 {[%emt 0:00:30]} Rxh3 {[%emt 0:00:30]} 41. f5 {[%emt 0:30:30]} Rh4 {[%emt 0:30:30]} 42. Kf6 {[%emt 0:00:30]} Rh6+ {[%emt 0:00:30]} 43. Kg5 {[%emt 0:00:30]} Rd6 {[%emt 0:00:30]} 44. Rxh7 {[%emt 0:00:30]} c5 {[%emt 0:00:30]} 45. Rc7 {[%emt 0:00:30]} Rd4 {[%emt 0:00:30]} 46. e5 {[%emt 0:00:30]} c4 {[%emt 0:00:30]} 47. e6 {[%emt 0:00:30]} 1-0

[Event "45th FIDE Olympiad 2024"]
[Site "Budapest"]
[Date "2024.09.16"]
[Round "6.63"]
[White "Karabo, Mokete"]
[Black "Cheikhna, Mohamed Lemine"]
[Result "1-0"]
[WhiteElo "1836"]
[BlackElo "1884"]
[PlyCount "47"]
[EventDate "2024.09.05"]
[EventType "team-tourn"]
[EventCountry "HUN"]
[WhiteTeam "Lesotho"]
[BlackTeam "Mauritania"]
[WhiteTeamCountry "LES"]
[BlackTeamCountry "MAU"]
[TimeControl "40/5400+30:1800+30"]

1. d4 d6 2. c4 g6 3. Nf3 Bg7 4. g3 e5 5. Nc3 exd4 6. Nxd4 Ne7 7. Bg2 O-O 8. O-O Nbc6 9. Nxc6 Nxc6 10. Nd5 Be6 11. h3 Ne5 12. Qb3 c6 13. Ne3 b5 14. Qc2 Nxc4 15. Nxc4 Bxc4 16. Bxc6 Rc8 17. Bf3 Qe7 18. Qd2 Rfd8 19. a4 Rb8 20. Qa5 b4 21. Bg5 f6 22. Be3 Rd7 23. Rac1 Qe6 24. Rxc4 1-0